[Event "Titled Tuesday Blitz August 15 Early 2023"]
[White "Kovalevsky, Stanislav"]
[Black "Paravyan, David"]
[WhiteFideId "13508598"]
[BlackFideId "4194985"]
[WhiteElo "2510"]
[BlackElo "3002"]
[Result "0-1"]
[Round "2"]
[TimeControl "180+1"]
[Date "2023.08.15"]
[WhiteClock "0:00:16"]
[BlackClock "0:01:15"]
[Board "112"]

1. c4 {[%clk 0:03:00]}  e6 {[%clk 0:02:58]} 2. d4 {[%clk 0:02:59]}  d5 {[%clk 0:02:59]} 3. Nc3 {[%clk 0:02:59]}  Nf6 {[%clk 0:02:59]} 4. cxd5 {[%clk 0:02:59]}  Nxd5 {[%clk 0:03:00]} 5. e4 {[%clk 0:02:59]}  Nxc3 {[%clk 0:03:00]} 6. bxc3 {[%clk 0:03:00]}  c5 {[%clk 0:03:00]} 7. Nf3 {[%clk 0:03:00]}  cxd4 {[%clk 0:03:00]} 8. cxd4 {[%clk 0:03:01]}  Bb4+ {[%clk 0:03:01]} 9. Bd2 {[%clk 0:03:01]}  Bxd2+ {[%clk 0:03:02]} 10. Qxd2 {[%clk 0:03:02]}  O-O {[%clk 0:03:02]} 11. Be2 {[%clk 0:03:02]}  b6 {[%clk 0:03:02]} 12. O-O {[%clk 0:02:54]}  Bb7 {[%clk 0:03:02]} 13. Qf4 {[%clk 0:02:53]}  Nd7 {[%clk 0:03:03]} 14. Rac1 {[%clk 0:02:49]}  Nf6 {[%clk 0:03:03]} 15. Bd3 {[%clk 0:02:45]}  Rc8 {[%clk 0:03:02]} 16. e5 {[%clk 0:02:32]}  Rxc1 {[%clk 0:02:36]} 17. Rxc1 {[%clk 0:02:29]}  Nh5 {[%clk 0:02:36]} 18. Qg4 {[%clk 0:02:10]}  Bxf3 {[%clk 0:02:37]} 19. gxf3 {[%clk 0:02:05]}  g6 {[%clk 0:02:35]} 20. Kh1 {[%clk 0:01:54]}  f5 {[%clk 0:02:33]} 21. exf6 {[%clk 0:01:50]}  Qxf6 {[%clk 0:02:33]} 22. Be4 {[%clk 0:01:46]}  Nf4 {[%clk 0:02:30]} 23. Rc4 {[%clk 0:01:29]}  b5 {[%clk 0:02:25]} 24. Rb4 {[%clk 0:01:27]}  a5 {[%clk 0:02:19]} 25. Rxb5 {[%clk 0:01:20]}  Qxd4 {[%clk 0:02:20]} 26. Rxa5 {[%clk 0:01:04]}  Qxf2 {[%clk 0:02:18]} 27. Qg1 {[%clk 0:01:02]}  Qe2 {[%clk 0:02:18]} 28. Ra7 {[%clk 0:00:58]}  Rd8 {[%clk 0:02:13]} 29. Ra8 {[%clk 0:00:50]}  Rxa8 {[%clk 0:02:13]} 30. Bxa8 {[%clk 0:00:51]}  Nd3 {[%clk 0:02:12]} 31. Qb1 {[%clk 0:00:40]}  e5 {[%clk 0:01:40]} 32. a4 {[%clk 0:00:17]}  Kg7 {[%clk 0:01:17]} 33. a5 {[%clk 0:00:16]}  Ne1 {[%clk 0:01:15]} 34. f4 {[%clk 0:00:16]}  Qf1# {[%clk 0:01:15]} 0-1


[Site "https://www.chess.com"]

[Event "Titled Tuesday Blitz August 15 Early 2023"]
[White "Cherniaiev, Tykhon"]
[Black "Shishkov, Andrei"]
[WhiteFideId "14182360"]
[BlackFideId "4500563"]
[WhiteElo "2780"]
[BlackElo "2503"]
[Result "1-0"]
[Round "2"]
[TimeControl "180+1"]
[Date "2023.08.15"]
[WhiteClock "0:01:59"]
[BlackClock "0:00:11"]
[Board "113"]

1. Nf3 {[%clk 0:03:00]}  Nf6 {[%clk 0:02:59]} 2. d4 {[%clk 0:03:00]}  e6 {[%clk 0:02:58]} 3. c4 {[%clk 0:03:00]}  d5 {[%clk 0:02:58]} 4. Nc3 {[%clk 0:03:00]}  dxc4 {[%clk 0:02:59]} 5. Bf4 {[%clk 0:02:56]}  Bd6 {[%clk 0:02:50]} 6. Bxd6 {[%clk 0:02:55]}  cxd6 {[%clk 0:02:51]} 7. Qa4+ {[%clk 0:02:55]}  Nc6 {[%clk 0:02:41]} 8. Qxc4 {[%clk 0:02:53]}  O-O {[%clk 0:02:38]} 9. e3 {[%clk 0:02:52]}  d5 {[%clk 0:02:37]} 10. Qa4 {[%clk 0:02:52]}  Bd7 {[%clk 0:02:36]} 11. Bb5 {[%clk 0:02:51]}  a6 {[%clk 0:02:32]} 12. Bxc6 {[%clk 0:02:52]}  Bxc6 {[%clk 0:02:33]} 13. Qa3 {[%clk 0:02:51]}  Nd7 {[%clk 0:02:23]} 14. O-O {[%clk 0:02:50]}  b5 {[%clk 0:02:22]} 15. Rac1 {[%clk 0:02:48]}  Qb6 {[%clk 0:02:22]} 16. Qd6 {[%clk 0:02:44]}  Rac8 {[%clk 0:02:05]} 17. Ne2 {[%clk 0:02:27]}  Rfd8 {[%clk 0:01:40]} 18. Nf4 {[%clk 0:02:26]}  Nf8 {[%clk 0:01:15]} 19. Qe7 {[%clk 0:02:10]}  Rd7 {[%clk 0:01:09]} 20. Qc5 {[%clk 0:02:10]}  Qxc5 {[%clk 0:00:52]} 21. Rxc5 {[%clk 0:02:11]}  Rdc7 {[%clk 0:00:53]} 22. Rfc1 {[%clk 0:02:06]}  f6 {[%clk 0:00:20]} 23. Nd3 {[%clk 0:02:01]}  Kf7 {[%clk 0:00:11]} 24. Nb4 {[%clk 0:01:59]} 1-0


[Site "https://www.chess.com"]

[Event "Titled Tuesday Blitz August 15 Early 2023"]
[White "Korchmar, Vasiliy"]
[Black "Li, Eric"]
[WhiteFideId "24131750"]
[BlackFideId "30939941"]
[WhiteElo "2716"]
[BlackElo "2404"]
[Result "1/2-1/2"]
[Round "2"]
[TimeControl "180+1"]
[Date "2023.08.15"]
[WhiteClock "0:00:15"]
[BlackClock "0:00:16"]
[Board "116"]

1. e4 {[%clk 0:03:00]}  c5 {[%clk 0:02:53]} 2. d4 {[%clk 0:02:59]}  cxd4 {[%clk 0:02:53]} 3. Qxd4 {[%clk 0:03:00]}  Nc6 {[%clk 0:02:53]} 4. Qd3 {[%clk 0:03:00]}  g6 {[%clk 0:02:53]} 5. Nc3 {[%clk 0:02:58]}  Bg7 {[%clk 0:02:53]} 6. Nf3 {[%clk 0:02:58]}  d6 {[%clk 0:02:52]} 7. Be2 {[%clk 0:02:59]}  Nf6 {[%clk 0:02:53]} 8. O-O {[%clk 0:02:59]}  O-O {[%clk 0:02:53]} 9. Nd5 {[%clk 0:02:59]}  Nxd5 {[%clk 0:02:50]} 10. exd5 {[%clk 0:03:00]}  Bf5 {[%clk 0:02:51]} 11. Qd1 {[%clk 0:02:59]}  Ne5 {[%clk 0:02:51]} 12. Nxe5 {[%clk 0:02:52]}  Bxe5 {[%clk 0:02:52]} 13. c3 {[%clk 0:02:52]}  a6 {[%clk 0:02:49]} 14. a4 {[%clk 0:02:52]}  Rc8 {[%clk 0:02:43]} 15. Be3 {[%clk 0:02:49]}  Re8 {[%clk 0:02:33]} 16. a5 {[%clk 0:02:47]}  e6 {[%clk 0:02:32]} 17. dxe6 {[%clk 0:02:47]}  Bxe6 {[%clk 0:02:33]} 18. Bf3 {[%clk 0:02:46]}  d5 {[%clk 0:02:32]} 19. Bd4 {[%clk 0:02:43]}  Bxd4 {[%clk 0:02:30]} 20. Qxd4 {[%clk 0:02:44]}  Rc4 {[%clk 0:02:31]} 21. Qd2 {[%clk 0:02:43]}  Rc5 {[%clk 0:02:27]} 22. b4 {[%clk 0:02:32]}  Rc4 {[%clk 0:02:26]} 23. Rfd1 {[%clk 0:02:31]}  Qc7 {[%clk 0:02:26]} 24. Rac1 {[%clk 0:02:01]}  Rc8 {[%clk 0:02:25]} 25. Bxd5 {[%clk 0:02:00]}  Rd8 {[%clk 0:02:25]} 26. Qg5 {[%clk 0:01:54]}  Rxd5 {[%clk 0:01:55]} 27. Rxd5 {[%clk 0:01:55]}  Bxd5 {[%clk 0:01:56]} 28. Qxd5 {[%clk 0:01:55]}  Rxc3 {[%clk 0:01:55]} 29. Rd1 {[%clk 0:01:44]}  Rc1 {[%clk 0:01:53]} 30. h4 {[%clk 0:01:44]}  Qc2 {[%clk 0:01:46]} 31. Qd8+ {[%clk 0:01:40]}  Kg7 {[%clk 0:01:47]} 32. Qd4+ {[%clk 0:01:40]}  Kg8 {[%clk 0:01:39]} 33. Rxc1 {[%clk 0:01:40]}  Qxc1+ {[%clk 0:01:40]} 34. Kh2 {[%clk 0:01:40]}  Qc6 {[%clk 0:01:36]} 35. g3 {[%clk 0:01:36]}  h5 {[%clk 0:01:36]} 36. Kg1 {[%clk 0:01:27]}  Qc1+ {[%clk 0:01:35]} 37. Kg2 {[%clk 0:01:27]}  Qc6+ {[%clk 0:01:35]} 38. Kf1 {[%clk 0:01:28]}  Kf8 {[%clk 0:01:30]} 39. Ke2 {[%clk 0:01:28]}  Ke7 {[%clk 0:01:30]} 40. Kd3 {[%clk 0:01:27]}  Ke6 {[%clk 0:00:54]} 41. Qc4+ {[%clk 0:01:23]}  Qd5+ {[%clk 0:00:52]} 42. Kc3 {[%clk 0:01:21]}  Kd6 {[%clk 0:00:49]} 43. Qf4+ {[%clk 0:01:00]}  Ke6 {[%clk 0:00:48]} 44. Qe3+ {[%clk 0:00:57]}  Kd6 {[%clk 0:00:47]} 45. Qb6+ {[%clk 0:00:57]}  Ke7 {[%clk 0:00:44]} 46. Qc7+ {[%clk 0:00:42]}  Ke6 {[%clk 0:00:44]} 47. Qc8+ {[%clk 0:00:42]}  Kf6 {[%clk 0:00:42]} 48. Qc5 {[%clk 0:00:31]}  Ke6 {[%clk 0:00:19]} 49. Qe3+ {[%clk 0:00:24]}  Kd6 {[%clk 0:00:18]} 50. f3 {[%clk 0:00:22]}  Qc6+ {[%clk 0:00:17]} 51. Kb2 {[%clk 0:00:21]}  Qd5 {[%clk 0:00:18]} 52. Kc3 {[%clk 0:00:16]}  Qc6+ {[%clk 0:00:16]} 53. Kd3 {[%clk 0:00:15]}  Qb5+ {[%clk 0:00:16]} 54. Kc3 {[%clk 0:00:15]}  Qc6+ {[%clk 0:00:16]} 1/2-1/2


[Site "https://www.chess.com"]

[Event "Titled Tuesday Blitz August 15 Early 2023"]
[White "Rozhkov, Viacheslav"]
[Black "Starozhilov, Leonid"]
[WhiteFideId "4181484"]
[BlackFideId "14106752"]
[WhiteElo "2400"]
[BlackElo "2714"]
[Result "1/2-1/2"]
[Round "2"]
[TimeControl "180+1"]
[Date "2023.08.15"]
[WhiteClock "0:00:07"]
[BlackClock "0:00:11"]
[Board "117"]

1. e4 {[%clk 0:03:00]}  Nc6 {[%clk 0:02:57]} 2. Nf3 {[%clk 0:03:00]}  e6 {[%clk 0:02:57]} 3. d4 {[%clk 0:03:00]}  d5 {[%clk 0:02:58]} 4. e5 {[%clk 0:02:58]}  f6 {[%clk 0:02:58]} 5. Bb5 {[%clk 0:02:55]}  Bd7 {[%clk 0:02:58]} 6. Bxc6 {[%clk 0:02:29]}  Bxc6 {[%clk 0:02:57]} 7. O-O {[%clk 0:02:29]}  Qd7 {[%clk 0:02:51]} 8. a3 {[%clk 0:02:20]}  Ne7 {[%clk 0:02:49]} 9. Nc3 {[%clk 0:02:08]}  Ng6 {[%clk 0:02:46]} 10. Qe2 {[%clk 0:02:06]}  fxe5 {[%clk 0:02:42]} 11. Nxe5 {[%clk 0:02:06]}  Nxe5 {[%clk 0:02:41]} 12. Qxe5 {[%clk 0:02:05]}  Bd6 {[%clk 0:02:42]} 13. Qh5+ {[%clk 0:02:06]}  g6 {[%clk 0:02:41]} 14. Qh4 {[%clk 0:02:05]}  O-O {[%clk 0:02:31]} 15. Bh6 {[%clk 0:01:58]}  Rf5 {[%clk 0:02:29]} 16. g4 {[%clk 0:01:48]}  Rf3 {[%clk 0:02:20]} 17. Rae1 {[%clk 0:01:35]}  Qf7 {[%clk 0:02:08]} 18. Re3 {[%clk 0:01:29]}  Re8 {[%clk 0:01:58]} 19. Kg2 {[%clk 0:01:26]}  Rf6 {[%clk 0:01:16]} 20. Bg5 {[%clk 0:01:20]}  Rf4 {[%clk 0:01:09]} 21. Bxf4 {[%clk 0:01:09]}  Bxf4 {[%clk 0:01:10]} 22. Rf3 {[%clk 0:01:08]}  g5 {[%clk 0:01:10]} 23. Qh6 {[%clk 0:01:03]}  e5 {[%clk 0:01:10]} 24. Ne2 {[%clk 0:00:52]}  Re6 {[%clk 0:01:05]} 25. Qh3 {[%clk 0:00:23]}  Bb5 {[%clk 0:01:04]} 26. Re1 {[%clk 0:00:17]}  e4 {[%clk 0:01:04]} 27. Rb3 {[%clk 0:00:13]}  c6 {[%clk 0:00:51]} 28. Ng3 {[%clk 0:00:10]}  Bc4 {[%clk 0:00:47]} 29. Rc3 {[%clk 0:00:08]}  Bd2 {[%clk 0:00:45]} 30. Rce3 {[%clk 0:00:08]}  Bxe1 {[%clk 0:00:44]} 31. Rxe1 {[%clk 0:00:08]}  Qf3+ {[%clk 0:00:44]} 32. Kg1 {[%clk 0:00:08]}  e3 {[%clk 0:00:44]} 33. Qg2 {[%clk 0:00:05]}  exf2+ {[%clk 0:00:42]} 34. Qxf2 {[%clk 0:00:06]}  Rxe1+ {[%clk 0:00:19]} 35. Qxe1 {[%clk 0:00:07]}  Qxg4 {[%clk 0:00:17]} 36. Qe8+ {[%clk 0:00:07]}  Kg7 {[%clk 0:00:18]} 37. Qe7+ {[%clk 0:00:07]}  Kg6 {[%clk 0:00:18]} 38. Qe8+ {[%clk 0:00:07]}  Kg7 {[%clk 0:00:12]} 39. Qe7+ {[%clk 0:00:07]}  Kg6 {[%clk 0:00:11]} 40. Qe8+ {[%clk 0:00:07]}  Kg7 {[%clk 0:00:11]} 1/2-1/2


[Site "https://www.chess.com"]

[Event "Titled Tuesday Blitz August 15 Early 2023"]
[White "Zavgorodniy, Sergiy"]
[Black "Melikhov, Evgeny V."]
[WhiteFideId "14110148"]
[BlackFideId "4122046"]
[WhiteElo "2598"]
[BlackElo "2382"]
[Result "0-1"]
[Round "2"]
[TimeControl "180+1"]
[Date "2023.08.15"]
[WhiteClock "0:00:49"]
[BlackClock "0:00:44"]
[Board "119"]

1. d4 {[%clk 0:03:00]}  Nf6 {[%clk 0:02:59]} 2. c4 {[%clk 0:02:59]}  e6 {[%clk 0:02:59]} 3. Nf3 {[%clk 0:02:58]}  d5 {[%clk 0:02:58]} 4. e3 {[%clk 0:02:57]}  Nc6 {[%clk 0:02:55]} 5. Nbd2 {[%clk 0:02:56]}  a6 {[%clk 0:02:47]} 6. Bd3 {[%clk 0:02:56]}  Bd6 {[%clk 0:02:43]} 7. O-O {[%clk 0:02:55]}  O-O {[%clk 0:02:43]} 8. Qe2 {[%clk 0:02:55]}  e5 {[%clk 0:02:35]} 9. cxd5 {[%clk 0:02:50]}  Nxd5 {[%clk 0:02:32]} 10. dxe5 {[%clk 0:02:48]}  Nxe5 {[%clk 0:02:32]} 11. Nxe5 {[%clk 0:02:47]}  Bxe5 {[%clk 0:02:32]} 12. Bxh7+ {[%clk 0:02:47]}  Kxh7 {[%clk 0:02:28]} 13. Qh5+ {[%clk 0:02:46]}  Kg8 {[%clk 0:02:28]} 14. Qxe5 {[%clk 0:02:46]}  Nf6 {[%clk 0:02:26]} 15. Qg3 {[%clk 0:02:41]}  c5 {[%clk 0:02:22]} 16. b3 {[%clk 0:02:38]}  b5 {[%clk 0:02:15]} 17. Nf3 {[%clk 0:02:36]}  Ne4 {[%clk 0:02:04]} 18. Bb2 {[%clk 0:02:35]}  Nxg3 {[%clk 0:02:03]} 19. hxg3 {[%clk 0:02:31]}  Bb7 {[%clk 0:02:02]} 20. Nh4 {[%clk 0:02:25]}  Qd2 {[%clk 0:01:58]} 21. Be5 {[%clk 0:02:22]}  f6 {[%clk 0:01:56]} 22. Bc7 {[%clk 0:02:19]}  Rac8 {[%clk 0:01:53]} 23. Bb6 {[%clk 0:02:17]}  Qd5 {[%clk 0:01:49]} 24. Nf3 {[%clk 0:02:15]}  Qc6 {[%clk 0:01:46]} 25. Ba5 {[%clk 0:02:14]}  b4 {[%clk 0:01:46]} 26. a3 {[%clk 0:02:00]}  Qb5 {[%clk 0:01:46]} 27. axb4 {[%clk 0:01:59]}  cxb4 {[%clk 0:01:46]} 28. Nd4 {[%clk 0:01:55]}  Qd5 {[%clk 0:01:44]} 29. f3 {[%clk 0:01:51]}  Qd6 {[%clk 0:01:40]} 30. g4 {[%clk 0:01:47]}  Rc3 {[%clk 0:01:39]} 31. Rfd1 {[%clk 0:01:44]}  Rxe3 {[%clk 0:01:33]} 32. Nf5 {[%clk 0:01:38]}  Qc5 {[%clk 0:01:31]} 33. Nxe3 {[%clk 0:01:37]}  Qxe3+ {[%clk 0:01:32]} 34. Kh2 {[%clk 0:01:36]}  Rc8 {[%clk 0:01:27]} 35. Ra2 {[%clk 0:01:33]}  Qxb3 {[%clk 0:01:25]} 36. Rad2 {[%clk 0:01:33]}  Qc4 {[%clk 0:01:18]} 37. Bb6 {[%clk 0:01:26]}  b3 {[%clk 0:01:16]} 38. Bd4 {[%clk 0:01:23]}  Rd8 {[%clk 0:01:14]} 39. g5 {[%clk 0:01:21]}  a5 {[%clk 0:01:10]} 40. gxf6 {[%clk 0:01:18]}  gxf6 {[%clk 0:01:10]} 41. Kg1 {[%clk 0:01:10]}  a4 {[%clk 0:01:08]} 42. Bb2 {[%clk 0:01:08]}  Rxd2 {[%clk 0:01:07]} 43. Rxd2 {[%clk 0:01:09]}  Qc5+ {[%clk 0:00:55]} 44. Kh2 {[%clk 0:01:08]}  a3 {[%clk 0:00:54]} 45. Bxf6 {[%clk 0:01:05]}  b2 {[%clk 0:00:51]} 46. Bxb2 {[%clk 0:00:59]}  axb2 {[%clk 0:00:51]} 47. Rxb2 {[%clk 0:00:58]}  Qe5+ {[%clk 0:00:50]} 48. Kh3 {[%clk 0:00:55]}  Qxb2 {[%clk 0:00:50]} 49. Kg3 {[%clk 0:00:55]}  Kf7 {[%clk 0:00:50]} 50. Kh2 {[%clk 0:00:55]}  Kf6 {[%clk 0:00:50]} 51. Kg3 {[%clk 0:00:55]}  Kg5 {[%clk 0:00:50]} 52. Kh3 {[%clk 0:00:54]}  Bxf3 {[%clk 0:00:47]} 53. g4 {[%clk 0:00:48]}  Bxg4+ {[%clk 0:00:46]} 54. Kg3 {[%clk 0:00:48]}  Qb3+ {[%clk 0:00:46]} 55. Kf2 {[%clk 0:00:48]}  Qf3+ {[%clk 0:00:44]} 56. Kg1 {[%clk 0:00:48]}  Qe2 {[%clk 0:00:44]} 57. Kh1 {[%clk 0:00:48]}  Bf3+ {[%clk 0:00:44]} 58. Kg1 {[%clk 0:00:49]}  Qg2# {[%clk 0:00:44]} 0-1


[Site "https://www.chess.com"]

[Event "Titled Tuesday Blitz August 15 Early 2023"]
[White "Hartikainen, Jarmo"]
[Black "Janaszak, Dawid"]
[WhiteFideId "503134"]
[BlackFideId "1119206"]
[WhiteElo "2113"]
[BlackElo "2523"]
[Result "0-1"]
[Round "2"]
[TimeControl "180+1"]
[Date "2023.08.15"]
[WhiteClock "0:00:06"]
[BlackClock "0:01:07"]
[Board "123"]

1. e4 {[%clk 0:03:00]}  g6 {[%clk 0:03:00]} 2. d4 {[%clk 0:03:00]}  Bg7 {[%clk 0:03:00]} 3. Nc3 {[%clk 0:03:00]}  a6 {[%clk 0:03:00]} 4. a4 {[%clk 0:02:59]}  b6 {[%clk 0:02:59]} 5. Be3 {[%clk 0:02:56]}  Bb7 {[%clk 0:02:59]} 6. Qd2 {[%clk 0:02:53]}  d6 {[%clk 0:02:55]} 7. f3 {[%clk 0:02:51]}  c5 {[%clk 0:02:54]} 8. Bc4 {[%clk 0:02:44]}  Nc6 {[%clk 0:02:52]} 9. Nge2 {[%clk 0:02:43]}  e6 {[%clk 0:02:48]} 10. dxc5 {[%clk 0:02:31]}  dxc5 {[%clk 0:02:47]} 11. Qxd8+ {[%clk 0:02:29]}  Rxd8 {[%clk 0:02:48]} 12. O-O {[%clk 0:02:27]}  Nb4 {[%clk 0:02:43]} 13. Bb3 {[%clk 0:02:22]}  c4 {[%clk 0:02:40]} 14. Bxc4 {[%clk 0:02:11]}  Nxc2 {[%clk 0:02:40]} 15. Bxb6 {[%clk 0:02:11]}  Rc8 {[%clk 0:02:23]} 16. Rac1 {[%clk 0:01:32]}  Rxc4 {[%clk 0:02:18]} 17. Rxc2 {[%clk 0:01:31]}  Ne7 {[%clk 0:02:18]} 18. b3 {[%clk 0:01:23]}  Rc6 {[%clk 0:02:16]} 19. Bd4 {[%clk 0:01:22]}  e5 {[%clk 0:02:08]} 20. Be3 {[%clk 0:01:19]}  O-O {[%clk 0:02:08]} 21. Rfc1 {[%clk 0:01:19]}  Rfc8 {[%clk 0:02:08]} 22. Kf1 {[%clk 0:01:10]}  f5 {[%clk 0:02:08]} 23. Ke1 {[%clk 0:01:07]}  a5 {[%clk 0:01:57]} 24. Kd1 {[%clk 0:01:07]}  Ba6 {[%clk 0:01:54]} 25. Nb5 {[%clk 0:01:01]}  fxe4 {[%clk 0:01:31]} 26. fxe4 {[%clk 0:00:48]}  Bb7 {[%clk 0:01:23]} 27. Rxc6 {[%clk 0:00:45]}  Bxc6 {[%clk 0:01:22]} 28. Nd6 {[%clk 0:00:36]}  Rd8 {[%clk 0:01:20]} 29. Bc5 {[%clk 0:00:36]}  Bxe4 {[%clk 0:01:20]} 30. g3 {[%clk 0:00:23]}  Nf5 {[%clk 0:01:20]} 31. Ke1 {[%clk 0:00:12]}  Nxd6 {[%clk 0:01:19]} 32. Rd1 {[%clk 0:00:12]}  Nb7 {[%clk 0:01:15]} 33. Nc3 {[%clk 0:00:12]}  Rxd1+ {[%clk 0:01:12]} 34. Kxd1 {[%clk 0:00:13]}  Nxc5 {[%clk 0:01:12]} 35. Ke2 {[%clk 0:00:06]}  Bc2 {[%clk 0:01:07]} 0-1


[Site "https://www.chess.com"]

[Event "Titled Tuesday Blitz August 15 Early 2023"]
[White "Hristodoulou, Panagiotis"]
[Black "Verony64"]
[WhiteFideId "4214340"]
[WhiteElo "2515"]
[BlackElo "2089"]
[Result "1-0"]
[Round "2"]
[TimeControl "180+1"]
[Date "2023.08.15"]
[WhiteClock "0:01:59"]
[BlackClock "0:02:01"]
[Board "124"]

1. e4 {[%clk 0:02:59]}  d6 {[%clk 0:03:00]} 2. d4 {[%clk 0:02:59]}  Nd7 {[%clk 0:03:00]} 3. Nf3 {[%clk 0:02:57]}  e5 {[%clk 0:02:58]} 4. Nc3 {[%clk 0:02:58]}  c6 {[%clk 0:02:58]} 5. Bc4 {[%clk 0:02:54]}  Be7 {[%clk 0:02:57]} 6. O-O {[%clk 0:02:52]}  Ngf6 {[%clk 0:02:57]} 7. Re1 {[%clk 0:02:53]}  O-O {[%clk 0:02:57]} 8. a4 {[%clk 0:02:43]}  Qc7 {[%clk 0:02:56]} 9. h3 {[%clk 0:02:41]}  b6 {[%clk 0:02:55]} 10. Bg5 {[%clk 0:02:40]}  a6 {[%clk 0:02:54]} 11. Qd2 {[%clk 0:02:40]}  Bb7 {[%clk 0:02:53]} 12. Rad1 {[%clk 0:02:39]}  b5 {[%clk 0:02:52]} 13. Bb3 {[%clk 0:02:39]}  b4 {[%clk 0:02:50]} 14. Nb1 {[%clk 0:02:34]}  c5 {[%clk 0:02:50]} 15. dxe5 {[%clk 0:02:26]}  Nxe5 {[%clk 0:02:40]} 16. Nxe5 {[%clk 0:02:19]}  dxe5 {[%clk 0:02:39]} 17. Bxf6 {[%clk 0:02:19]}  Bxf6 {[%clk 0:02:39]} 18. Qe2 {[%clk 0:02:18]}  Rac8 {[%clk 0:02:35]} 19. Nd2 {[%clk 0:02:17]}  g6 {[%clk 0:02:34]} 20. Nc4 {[%clk 0:02:16]}  Rfd8 {[%clk 0:02:31]} 21. Ne3 {[%clk 0:02:14]}  Bxe4 {[%clk 0:02:28]} 22. Ng4 {[%clk 0:02:13]}  Rxd1 {[%clk 0:02:23]} 23. Rxd1 {[%clk 0:02:12]}  Qc6 {[%clk 0:02:19]} 24. Qxe4 {[%clk 0:02:07]}  Kg7 {[%clk 0:02:13]} 25. Qxc6 {[%clk 0:02:06]}  Rxc6 {[%clk 0:02:13]} 26. Nxf6 {[%clk 0:02:04]}  Kxf6 {[%clk 0:02:12]} 27. Bc4 {[%clk 0:02:05]}  e4 {[%clk 0:02:12]} 28. Rd7 {[%clk 0:02:03]}  h5 {[%clk 0:02:09]} 29. Rxf7+ {[%clk 0:02:02]}  Ke5 {[%clk 0:02:10]} 30. Rd7 {[%clk 0:02:01]}  Rf6 {[%clk 0:02:01]} 31. Rd5+ {[%clk 0:01:59]} 1-0


[Site "https://www.chess.com"]

[Event "Titled Tuesday Blitz August 15 Early 2023"]
[White "Risteski, Emil"]
[Black "White, John S."]
[WhiteFideId "15005267"]
[BlackFideId "2502348"]
[WhiteElo "2513"]
[BlackElo "2022"]
[Result "1-0"]
[Round "2"]
[TimeControl "180+1"]
[Date "2023.08.15"]
[WhiteClock "0:00:10"]
[BlackClock "0:00:04"]
[Board "125"]

1. d3 {[%clk 0:03:00]}  Nf6 {[%clk 0:02:58]} 2. e4 {[%clk 0:03:00]}  d6 {[%clk 0:02:57]} 3. f4 {[%clk 0:03:00]}  g6 {[%clk 0:02:56]} 4. Nf3 {[%clk 0:03:00]}  Bg7 {[%clk 0:02:55]} 5. Be2 {[%clk 0:03:01]}  O-O {[%clk 0:02:55]} 6. O-O {[%clk 0:03:01]}  c5 {[%clk 0:02:53]} 7. Qe1 {[%clk 0:03:01]}  Nc6 {[%clk 0:02:53]} 8. Qh4 {[%clk 0:03:01]}  Bd7 {[%clk 0:02:44]} 9. Bd1 {[%clk 0:02:58]}  b5 {[%clk 0:02:40]} 10. f5 {[%clk 0:02:54]}  Qb6 {[%clk 0:02:33]} 11. Bh6 {[%clk 0:02:53]}  c4+ {[%clk 0:02:26]} 12. Kh1 {[%clk 0:02:52]}  cxd3 {[%clk 0:02:22]} 13. cxd3 {[%clk 0:02:48]}  Rac8 {[%clk 0:02:14]} 14. Ng5 {[%clk 0:02:44]}  Ne5 {[%clk 0:01:59]} 15. Nc3 {[%clk 0:02:39]}  Bc6 {[%clk 0:01:50]} 16. fxg6 {[%clk 0:02:06]}  hxg6 {[%clk 0:01:41]} 17. Bb3 {[%clk 0:01:59]}  Ned7 {[%clk 0:01:26]} 18. Nd5 {[%clk 0:01:31]}  Bxd5 {[%clk 0:01:24]} 19. Bxd5 {[%clk 0:01:31]}  Rc2 {[%clk 0:01:15]} 20. b4 {[%clk 0:01:01]}  Qd4 {[%clk 0:01:07]} 21. Rad1 {[%clk 0:00:46]}  Qxb4 {[%clk 0:01:02]} 22. h3 {[%clk 0:00:37]}  Qb2 {[%clk 0:01:00]} 23. Qg3 {[%clk 0:00:24]}  Bxh6 {[%clk 0:00:55]} 24. Nxf7 {[%clk 0:00:24]}  Kg7 {[%clk 0:00:48]} 25. Nxh6 {[%clk 0:00:17]}  Kxh6 {[%clk 0:00:46]} 26. d4 {[%clk 0:00:12]}  Kg7 {[%clk 0:00:42]} 27. Bb3 {[%clk 0:00:05]}  Rd2 {[%clk 0:00:38]} 28. Rde1 {[%clk 0:00:04]}  Qxd4 {[%clk 0:00:34]} 29. Qg5 {[%clk 0:00:01]}  Qe5 {[%clk 0:00:26]} 30. Qxd2 {[%clk 0:00:02]}  Nc5 {[%clk 0:00:19]} 31. Qe2 {[%clk 0:00:01]}  Ncxe4 {[%clk 0:00:17]} 32. Rf3 {[%clk 0:00:02]}  Ng3+ {[%clk 0:00:13]} 33. Rxg3 {[%clk 0:00:02]}  Qxg3 {[%clk 0:00:12]} 34. Qxe7+ {[%clk 0:00:03]}  Rf7 {[%clk 0:00:10]} 35. Qxf7+ {[%clk 0:00:04]}  Kh6 {[%clk 0:00:09]} 36. Rf1 {[%clk 0:00:04]}  Nh5 {[%clk 0:00:07]} 37. Qf8+ {[%clk 0:00:05]}  Ng7 {[%clk 0:00:06]} 38. Qf4+ {[%clk 0:00:05]}  Qxf4 {[%clk 0:00:05]} 39. Rxf4 {[%clk 0:00:06]}  Nh5 {[%clk 0:00:05]} 40. Rd4 {[%clk 0:00:06]}  Ng3+ {[%clk 0:00:05]} 41. Kh2 {[%clk 0:00:05]}  Nf5 {[%clk 0:00:06]} 42. Rd5 {[%clk 0:00:06]}  Kg7 {[%clk 0:00:04]} 43. Rxb5 {[%clk 0:00:06]}  a6 {[%clk 0:00:04]} 44. Rb7+ {[%clk 0:00:07]}  Kf6 {[%clk 0:00:04]} 45. Ra7 {[%clk 0:00:08]}  Ne3 {[%clk 0:00:03]} 46. Rxa6 {[%clk 0:00:08]}  Ke5 {[%clk 0:00:03]} 47. Ra8 {[%clk 0:00:08]}  g5 {[%clk 0:00:03]} 48. a4 {[%clk 0:00:08]}  d5 {[%clk 0:00:03]} 49. a5 {[%clk 0:00:08]}  d4 {[%clk 0:00:04]} 50. a6 {[%clk 0:00:09]}  d3 {[%clk 0:00:04]} 51. a7 {[%clk 0:00:09]}  d2 {[%clk 0:00:04]} 52. Re8+ {[%clk 0:00:08]}  Kd4 {[%clk 0:00:04]} 53. Rxe3 {[%clk 0:00:09]}  Kxe3 {[%clk 0:00:04]} 54. Bd1 {[%clk 0:00:10]}  Kf2 {[%clk 0:00:04]} 55. a8=Q {[%clk 0:00:10]}  Ke1 {[%clk 0:00:05]} 56. Qf3 {[%clk 0:00:09]}  g4 {[%clk 0:00:04]} 57. Qe2# {[%clk 0:00:10]} 1-0


[Site "https://www.chess.com"]